fUSD/lending_fUSD_20250720
["ID","MTS","AMOUNT","RATE_DAILY","PERIOD"]
[373593041,1753055489805,-480.0,0.00019506,2]
[373593042,1753055489814,-496.31,0.00019506,2]
[373593043,1753055489824,-480.0,0.00019506,2]
[373593044,1753055489833,-746.26,0.00019506,2]
[373593045,1753055489843,-480.0,0.00019506,2]
[373593046,1753055489852,-480.0,0.00019506,2]
[373593047,1753055489862,-480.0,0.00019506,2]
[373593048,1753055489871,-480.0,0.00019506,2]
[373593049,1753055489880,-878.11,0.00019506,2]
[373593050,1753055489889,-480.0,0.00019506,2]
[373593051,1753055489899,-480.0,0.00019506,2]
[373593052,1753055489909,-480.0,0.00019506,2]
[373593053,1753055489918,-480.0,0.00019506,2]
[373593054,1753055489928,-740.16,0.00019506,2]
[373593055,1753055489937,-480.0,0.00019506,2]
[373593056,1753055489947,-787.48,0.00019506,2]
[373593057,1753055489956,-480.0,0.00019506,2]
[373593058,1753055489965,-480.0,0.00019506,2]
[373593059,1753055489975,-480.0,0.00019506,2]
[373593060,1753055489984,-556.69,0.00019506,2]
[373593061,1753055489993,-1336.05,0.00019506,2]
[373593062,1753055490002,-480.0,0.00019506,2]
[373593063,1753055490011,-1705.21,0.00019506,2]
[373593064,1753055490021,-754.23,0.00019506,2]
[373593065,1753055490030,-1341.37,0.00019506,2]
[373593066,1753055490039,-480.0,0.00019506,2]
[373593067,1753055490049,-1712.3,0.00019506,2]
[373593068,1753055490059,-775.44,0.00019506,2]
[373593069,1753055490069,-480.0,0.00019506,2]
[373593070,1753055490078,-480.0,0.00019506,2]
[373593071,1753055490087,-480.0,0.00019506,2]
[373593072,1753055490096,-480.0,0.00019506,2]
[373593073,1753055490105,-9042.14,0.00019506,2]
[373593074,1753055490114,-729.57262347,0.00019506,2]
[373593075,1753055490570,-520.31051018,0.00017533,2]
[373593076,1753055490580,-683.37,0.00019397,2]
[373593077,1753055490589,-410.50737653,0.00019506,2]
[373593078,1753055490599,-579.3,0.00019506,2]
[373593079,1753055490608,-799.74,0.00019506,2]
[373593080,1753055490618,-480.0,0.00019506,2]
[373593081,1753055490627,-480.0,0.00019506,2]
[373593082,1753055490637,-480.0,0.00019506,2]
[373593083,1753055490647,-480.0,0.00019506,2]
[373593084,1753055490656,-480.0,0.00019506,2]
[373593085,1753055490665,-677.35,0.00019506,2]
[373593086,1753055490675,-734.28,0.00019506,2]
[373593087,1753055490685,-706.59,0.00019506,2]
[373593088,1753055490694,-480.0,0.00019506,2]
[373593089,1753055490703,-842.64,0.00019506,2]
[373593090,1753055490713,-6146.34,0.00019506,2]
[373593091,1753055490722,-4993.51,0.00019506,2]
[373593092,1753055490731,-480.0,0.00019506,2]
[373593093,1753055490740,-480.0,0.00019506,2]
[373593094,1753055490752,-1566.11,0.00019506,2]
[373593095,1753055490762,-482.32,0.00019506,2]
[373593096,1753055490771,-739.01,0.00019506,2]
[373593097,1753055490781,-480.0,0.00019506,2]
[373593098,1753055490790,-5552.39,0.00019506,2]
[373593099,1753055490803,-480.0,0.00019506,2]
[373593100,1753055490812,-641.48,0.00019506,2]
[373593101,1753055490822,-480.0,0.00019506,2]
[373593102,1753055490835,-475.38892284,0.00019506,2]
[373593103,1753055490844,-389.99679789,0.00019506,2]
[373593104,1753055490853,-480.0,0.00019506,2]
[373593105,1753055490864,-480.0,0.00019506,2]
[373593106,1753055490875,-496.3,0.00019506,2]
[373593107,1753055490883,-480.0,0.00019506,2]
[373593108,1753055490892,-570.59,0.00019506,2]
[373593109,1753055490901,-480.0,0.00019506,2]
[373593110,1753055490911,-1082.49,0.00019506,2]
[373593111,1753055490920,-480.0,0.00019506,2]
[373593112,1753055490929,-480.0,0.00019506,2]
[373593113,1753055490938,-2668.7,0.00019506,2]
[373593114,1753055490947,-480.0,0.00019506,2]
[373593115,1753055490957,-754.25,0.00019506,2]
[373593116,1753055490966,-601.28,0.00019506,2]
[373593117,1753055490976,-480.0,0.00019506,2]
[373593118,1753055490985,-3251.3,0.00019506,2]
[373593119,1753055490994,-259.36124391,0.00019506,2]
[373593120,1753055491003,-1368.15,0.00019506,2]
[373593121,1753055491012,-480.0,0.00019506,2]
[373593122,1753055491021,-1027.05,0.00019506,2]
[373593123,1753055491030,-601.4,0.00019506,2]
[373593124,1753055491039,-480.0,0.00019506,2]
[373593125,1753055491048,-480.0,0.00019506,2]
[373593126,1753055491057,-2641.79,0.00019506,2]
[373593127,1753055491066,-480.0,0.00019506,2]
[373593128,1753055491075,-204.28603496,0.00019506,2]
[373593129,1753055491083,-1818.69,0.00019506,2]
[373593130,1753055491092,-2500.89,0.00019506,2]
[373593131,1753055491101,-480.0,0.00019506,2]
[373593132,1753055491110,-2805.44,0.00019506,2]
[373593133,1753055491119,-480.0,0.00019506,2]
[373593134,1753055491128,-517.96,0.00019506,2]
[373593135,1753055491137,-1372.51,0.00019506,2]
[373593136,1753055491146,-480.0,0.00019506,2]
[373593137,1753055491156,-480.0,0.00019506,2]
[373593138,1753055491166,-480.0,0.00019506,2]
[373593139,1753055491175,-870.51,0.00019506,2]
[373593140,1753055491184,-480.0,0.00019506,2]
[373593141,1753055491193,-480.0,0.00019506,2]
[373593142,1753055491202,-480.0,0.00019506,2]
[373593143,1753055491211,-480.0,0.00019506,2]
[373593144,1753055491221,-480.0,0.00019506,2]
[373593145,1753055491230,-1482.94,0.00019506,2]
[373593146,1753055491240,-2642.36,0.00019506,2]
[373593147,1753055491249,-1583.24,0.00019506,2]
[373593148,1753055491259,-5286.42,0.00019506,2]
[373593149,1753055491268,-983.96,0.00019506,2]
[373593150,1753055491278,-538.34,0.00019506,2]
[373593151,1753055491287,-480.0,0.00019506,2]
[373593152,1753055491297,-480.0,0.00019506,2]
[373593153,1753055491306,-480.0,0.00019506,2]
[373593154,1753055491315,-511.62,0.00019506,2]
[373593155,1753055491325,-1310.87,0.00019506,2]
[373593156,1753055491335,-480.0,0.00019506,2]
[373593157,1753055491344,-300.0,0.00019506,2]
[373593158,1753055491353,-733.45,0.00019506,2]
[373593159,1753055491363,-480.0,0.00019506,2]
[373593160,1753055491373,-480.0,0.00019506,2]
[373593161,1753055491383,-480.0,0.00019506,2]
[373593162,1753055491392,-828.32,0.00019506,2]
[373593163,1753055491401,-554.03,0.00019506,2]
[373593164,1753055491411,-586.57,0.00019506,2]
[373593165,1753055491421,-480.0,0.00019506,2]
[373593166,1753055491430,-480.0,0.00019506,2]
[373593167,1753055491440,-2504.7,0.00019506,2]
[373593168,1753055491450,-1019.29,0.00019506,2]
[373593169,1753055491459,-6508.21,0.00019506,2]
[373593170,1753055491469,-480.0,0.00019506,2]
[373593171,1753055491479,-1137.53,0.00019506,2]
[373593172,1753055491488,-480.0,0.00019506,2]
[373593173,1753055491498,-2416.16,0.00019506,2]
[373593174,1753055491507,-480.0,0.00019506,2]
[373593175,1753055491517,-949.94,0.00019506,2]
[373593176,1753055491527,-2180.91,0.00019506,2]
[373593177,1753055491536,-1638.17,0.00019506,2]
[373593178,1753055491546,-594.19,0.00019506,2]
[373593179,1753055491558,-480.0,0.00019506,2]
[373593180,1753055491567,-669.13,0.00019506,2]
[373593181,1753055491577,-489.3,0.00019506,2]
[373593182,1753055491587,-480.0,0.00019506,2]
[373593183,1753055491596,-6204.9,0.00019506,2]
[373593184,1753055491606,-782.64,0.00019506,2]
[373593185,1753055491616,-2641.11,0.00019506,2]
[373593186,1753055491626,-480.0,0.00019506,2]
[373593187,1753055491635,-470.8243287,0.00019506,2]
[373593188,1753055491645,-480.0,0.00019506,2]
[373593189,1753055491654,-1494.6,0.00019506,2]
[373593190,1753055491663,-480.0,0.00019506,2]
[373593191,1753055491674,-3435.49,0.00019506,2]
[373593192,1753055491684,-480.0,0.00019506,2]
[373593193,1753055491693,-480.0,0.00019506,2]
[373593194,1753055491703,-1042.19,0.00019506,2]
[373593195,1753055491713,-480.0,0.00019506,2]
[373593196,1753055491723,-480.0,0.00019506,2]
[373593197,1753055491733,-480.0,0.00019506,2]
[373593198,1753055491743,-7599.96,0.00019506,2]
[373593199,1753055491758,-4006.2,0.00019506,2]
[373593200,1753055491768,-480.0,0.00019506,2]
[373593201,1753055491778,-480.0,0.00019506,2]
[373593202,1753055491787,-1853.45,0.00019506,2]
[373593203,1753055491797,-480.0,0.00019506,2]
[373593204,1753055491808,-802.61,0.00019506,2]
[373593205,1753055491818,-2737.81,0.00019506,2]
[373593206,1753055491828,-1428.49,0.00019506,2]
[373593207,1753055491838,-480.0,0.00019506,2]
[373593208,1753055491848,-1423.65,0.00019506,2]
[373593209,1753055491857,-1176.44,0.00019506,2]
[373593210,1753055491867,-280.89653158,0.00019506,2]
[373593211,1753055491877,-1698.98,0.00019506,2]
[373593212,1753055491886,-1420.65,0.00019506,2]
[373593213,1753055491896,-480.0,0.00019506,2]
[373593214,1753055491906,-480.0,0.00019506,2]
[373593215,1753055491916,-480.0,0.00019506,2]
[373593216,1753055491927,-1141.6,0.00019506,2]
[373593217,1753055491938,-863.32,0.00019506,2]
[373593218,1753055491951,-480.0,0.00019506,2]
[373593219,1753055491960,-5712.58,0.00019506,2]
[373593220,1753055491972,-725.79,0.00019506,2]
[373593221,1753055491981,-2053.25,0.00019506,2]
[373593222,1753055491991,-3858.72,0.00019506,2]
[373593223,1753055492001,-480.0,0.00019506,2]
[373593224,1753055492011,-480.0,0.00019506,2]
[373593225,1753055492021,-1827.89,0.00019506,2]
[373593226,1753055492032,-480.0,0.00019506,2]
[373593227,1753055492042,-3292.51,0.00019506,2]
[373593228,1753055492053,-463.03467247,0.00019506,2]
[373593229,1753055492063,-1732.45,0.00019506,2]
[373593230,1753055492073,-1077.42,0.00019506,2]
[373593231,1753055492083,-480.0,0.00019506,2]
[373593232,1753055492092,-480.0,0.00019506,2]
[373593233,1753055492102,-480.0,0.00019506,2]
[373593234,1753055492111,-480.0,0.00019506,2]
[373593235,1753055492121,-480.0,0.00019506,2]
[373593236,1753055492131,-2614.35,0.00019506,2]
[373593237,1753055492141,-850.02,0.00019506,2]
[373593238,1753055492151,-1026.25,0.00019506,2]
[373593239,1753055492161,-480.0,0.00019506,2]
[373593240,1753055492171,-480.0,0.00019506,2]
[373593241,1753055492180,-1944.5,0.00019506,2]
[373593242,1753055492190,-1364.06,0.00019506,2]
[373593243,1753055492199,-647.47,0.00019506,2]
[373593244,1753055492209,-852.44,0.00019506,2]
[373593245,1753055492219,-480.0,0.00019506,2]
[373593246,1753055492229,-321.95634367,0.00019506,2]
[373593247,1753055492238,-480.0,0.00019506,2]
[373593248,1753055492248,-2084.33,0.00019506,2]
[373593249,1753055492257,-514.75,0.00019506,2]
[373593250,1753055492267,-584.67,0.00019506,2]
[373593251,1753055492277,-578.26,0.00019506,2]
[373593252,1753055492288,-480.0,0.00019506,2]
[373593253,1753055492298,-556.44,0.00019506,2]
[373593254,1753055492309,-480.0,0.00019506,2]
[373593255,1753055492320,-1404.43,0.00019506,2]
[373593256,1753055492331,-480.0,0.00019506,2]
[373593257,1753055492340,-548.09,0.00019506,2]
[373593258,1753055492350,-909.49,0.00019506,2]
[373593259,1753055492360,-598.52,0.00019506,2]
[373593260,1753055492370,-6912.92,0.00019506,2]
[373593261,1753055492379,-480.0,0.00019506,2]
[373593262,1753055492389,-2197.18,0.00019506,2]
[373593263,1753055492399,-6861.5,0.00019506,2]
[373593264,1753055492409,-999.53,0.00019506,2]
[373593265,1753055492418,-480.0,0.00019506,2]
[373593266,1753055492428,-505.52,0.00019506,2]
[373593267,1753055492438,-480.0,0.00019506,2]
[373593268,1753055492448,-2522.12,0.00019506,2]
[373593269,1753055492457,-754.6,0.00019506,2]
[373593270,1753055492467,-420.0,0.00019506,2]
[373593271,1753055492477,-979.45,0.00019506,2]
[373593272,1753055492486,-527.68,0.00019506,2]
[373593273,1753055492496,-1327.7,0.00019506,2]
[373593274,1753055492506,-578.11,0.00019506,2]
[373593275,1753055492516,-561.28,0.00019506,2]
[373593276,1753055492525,-487.44,0.00019506,2]
[373593277,1753055492535,-480.0,0.00019506,2]
[373593278,1753055492545,-483.15,0.00019506,2]
[373593279,1753055492556,-817.12,0.00019506,2]
[373593280,1753055492566,-1704.69,0.00019506,2]
[373593281,1753055492576,-480.0,0.00019506,2]
[373593282,1753055492585,-1378.56,0.00019506,2]
[373593283,1753055492595,-577.6,0.00019506,2]
[373593284,1753055492604,-480.0,0.00019506,2]
[373593285,1753055492615,-480.0,0.00019506,2]
[373593286,1753055492625,-623.1,0.00019506,2]
[373593287,1753055492634,-985.63,0.00019506,2]
[373593288,1753055492644,-1583.49,0.00019506,2]
[373593289,1753055492654,-480.0,0.00019506,2]
[373593290,1753055492663,-480.0,0.00019506,2]
[373593291,1753055492673,-1388.15,0.00019506,2]
[373593292,1753055492683,-657.93,0.00019506,2]
[373593293,1753055492693,-480.0,0.00019506,2]
[373593294,1753055492703,-480.0,0.00019506,2]
[373593295,1753055492712,-480.0,0.00019506,2]
[373593296,1753055492723,-2594.98,0.00019506,2]
[373593297,1753055492733,-7034.27,0.00019506,2]
[373593298,1753055492743,-743.99,0.00019506,2]
[373593299,1753055492757,-480.0,0.00019506,2]
[373593300,1753055492766,-480.0,0.00019506,2]
[373593301,1753055492776,-480.0,0.00019506,2]
[373593302,1753055492787,-480.0,0.00019506,2]
[373593303,1753055492797,-3539.75,0.00019506,2]
[373593304,1753055492811,-1004.16,0.00019506,2]
[373593305,1753055492820,-737.48,0.00019506,2]
[373593306,1753055492830,-480.0,0.00019506,2]
[373593307,1753055492840,-1472.24,0.00019506,2]
[373593308,1753055492850,-4433.87,0.00019506,2]
[373593309,1753055492859,-480.0,0.00019506,2]
[373593310,1753055492869,-480.0,0.00019506,2]
[373593311,1753055492879,-1445.45,0.00019506,2]
[373593312,1753055492889,-480.0,0.00019506,2]
[373593313,1753055492898,-480.0,0.00019506,2]
[373593314,1753055492910,-480.0,0.00019506,2]
[373593315,1753055492920,-802.79,0.00019506,2]
[373593316,1753055492930,-2205.42,0.00019506,2]
[373593317,1753055492940,-3481.93,0.00019506,2]
[373593318,1753055492950,-480.0,0.00019506,2]
[373593319,1753055492960,-430.0355633,0.00019506,2]
[373593320,1753055492970,-2642.28,0.00019506,2]
[373593321,1753055492980,-480.0,0.00019506,2]
[373593322,1753055492990,-1208.88,0.00019506,2]
[373593323,1753055493000,-514.69,0.00019506,2]
[373593324,1753055493010,-1029.82,0.00019506,2]
[373593325,1753055493020,-480.0,0.00019506,2]
[373593326,1753055493030,-480.0,0.00019506,2]
[373593327,1753055493040,-1095.25,0.00019506,2]
[373593328,1753055493051,-882.72,0.00019506,2]
[373593329,1753055493062,-480.0,0.00019506,2]
[373593330,1753055493072,-1439.85,0.00019506,2]
[373593331,1753055493083,-480.0,0.00019506,2]
[373593332,1753055493093,-1950.55,0.00019506,2]
[373593333,1753055493102,-953.77,0.00019506,2]
[373593334,1753055493112,-480.0,0.00019506,2]
[373593335,1753055493122,-319.12,0.00019506,2]
[373593336,1753055493133,-961.17,0.00019506,2]
[373593337,1753055493143,-2483.28,0.00019506,2]
[373593338,1753055493154,-1906.99,0.00019506,2]
[373593339,1753055493164,-480.0,0.00019506,2]
[373593340,1753055493174,-1454.01,0.00019506,2]
[373593341,1753055493184,-480.0,0.00019506,2]
[373593342,1753055493195,-1265.49,0.00019506,2]
[373593343,1753055493205,-480.0,0.00019506,2]
[373593344,1753055493215,-610.22,0.00019506,2]
[373593345,1753055493226,-5184.78,0.00019506,2]
[373593346,1753055493236,-480.0,0.00019506,2]
[373593347,1753055493246,-480.0,0.00019506,2]
[373593348,1753055493256,-1510.22,0.00019506,2]
[373593349,1753055493266,-43569.02,0.00019506,2]
[373593350,1753055493276,-20753.93,0.00019506,2]
[373593351,1753055493286,-567.19,0.00019506,2]
[373593352,1753055493296,-929.07,0.00019506,2]
[373593353,1753055493308,-3149.28,0.00019506,2]
[373593354,1753055493319,-2416.64,0.00019506,2]
[373593355,1753055493329,-2652.86,0.00019506,2]
[373593356,1753055493339,-837.08,0.00019506,2]
[373593357,1753055493349,-968.5,0.00019506,2]
[373593358,1753055493359,-480.0,0.00019506,2]
[373593359,1753055493369,-873.48,0.00019506,2]
[373593360,1753055493380,-1144.05,0.00019506,2]
[373593361,1753055493391,-665.72,0.00019506,2]
[373593362,1753055493401,-4582.78,0.00019506,2]
[373593363,1753055493411,-1162.44,0.00019506,2]
[373593364,1753055493421,-2848.38,0.00019506,2]
[373593365,1753055493431,-411.1,0.00019506,2]
[373593366,1753055493441,-1300.7,0.00019506,2]
[373593367,1753055493735,-697.79,0.00019506,2]
[373593368,1753055493748,-4306.73,0.00019506,2]
[373593369,1753055493763,-480.0,0.00019506,2]
[373593370,1753055493773,-667.28,0.00019506,2]
[373593371,1753055493783,-480.0,0.00019506,2]
[373593372,1753055493794,-480.0,0.00019506,2]
[373593373,1753055493805,-1516.36,0.00019506,2]
[373593374,1753055493816,-480.0,0.00019506,2]
[373593375,1753055493826,-1503.11,0.00019506,2]
[373593376,1753055493837,-1997.74,0.00019506,2]
[373593377,1753055493848,-8864.03,0.00019506,2]
[373593378,1753055493857,-480.0,0.00019506,2]
[373593379,1753055493867,-2254.31,0.00019506,2]
[373593380,1753055493878,-480.0,0.00019506,2]
[373593381,1753055493888,-2414.83,0.00019506,2]
[373593382,1753055493898,-480.0,0.00019506,2]
[373593383,1753055493908,-2346.59,0.00019506,2]
[373593384,1753055493917,-480.0,0.00019506,2]
[373593385,1753055493928,-481.79,0.00019506,2]
[373593386,1753055493938,-3298.81,0.00019506,2]
[373593387,1753055493948,-480.0,0.00019506,2]
[373593388,1753055493958,-480.0,0.00019506,2]
[373593389,1753055493967,-1508.5,0.00019506,2]
[373593390,1753055493977,-4353.48,0.00019506,2]
[373593391,1753055493987,-480.0,0.00019506,2]
[373593392,1753055493996,-1340.37,0.00019506,2]
[373593393,1753055494006,-741.2,0.00019506,2]
[373593394,1753055494015,-480.0,0.00019506,2]
[373593395,1753055494025,-529.22,0.00019506,2]
[373593396,1753055494035,-480.0,0.00019506,2]
[373593397,1753055494044,-480.0,0.00019506,2]
[373593398,1753055494054,-480.0,0.00019506,2]
[373593399,1753055494064,-2980.28,0.00019506,2]
[373593400,1753055494075,-480.0,0.00019506,2]
[373593401,1753055494085,-440.0,0.00019506,2]
[373593402,1753055494095,-1170.02,0.00019506,2]
[373593403,1753055494105,-480.0,0.00019506,2]
[373593404,1753055494115,-1088.82,0.00019506,2]
[373593405,1753055494124,-480.0,0.00019506,2]
[373593406,1753055494134,-1109.08,0.00019506,2]
[373593407,1753055494143,-480.0,0.00019506,2]
[373593408,1753055494153,-480.0,0.00019506,2]
[373593409,1753055494163,-183.46,0.00019506,2]
[373593410,1753055494173,-7882.05,0.00019506,2]
[373593411,1753055494183,-825.59,0.00019506,2]
[373593412,1753055494193,-1949.73915986,0.00019516,2]
[373593413,1753055494203,-150.0,0.00019533,2]
[373593414,1753055494213,-154.88076955,0.00019602,2]
[373593415,1753055494223,-359.76179104,0.00019606,2]
[373593416,1753055494233,-239.84119403,0.00019606,2]
[373593417,1753055494243,-500.0,0.00019607,2]
[373593418,1753055494253,-399.20194727,0.00019612,2]
[373593419,1753055494262,-150.0,0.00019613,2]
[373593420,1753055494272,-152.181321,0.00019616,2]
[373593421,1753055494282,-155.093728,0.00019616,2]
[373593422,1753055494291,-906.747034,0.00019616,2]
[373593423,1753055494302,-882.095576,0.00019616,2]
[373593424,1753055494312,-168.018206,0.00019616,2]
[373593425,1753055494321,-842.356741,0.00019616,2]
[373593426,1753055494331,-207.95754443,0.00019616,2]
[373593427,1753055494340,-480.0,0.00019616,2]
[373593428,1753055494350,-480.0,0.00019616,2]
[373593429,1753055494359,-463.71240587,0.00019616,2]
[373593430,1753055494368,-1766.02,0.00019616,2]
[373593431,1753055494378,-480.0,0.00019616,2]
[373593432,1753055494387,-480.0,0.00019616,2]
[373593433,1753055494397,-480.0,0.00019616,2]
[373593434,1753055494406,-480.0,0.00019616,2]
[373593435,1753055494416,-480.0,0.00019616,2]
[373593436,1753055494426,-480.0,0.00019616,2]
[373593437,1753055494436,-213.41351867,0.00019616,2]
[373593438,1753055494446,-480.0,0.00019616,2]
[373593439,1753055494457,-429.10038268,0.00019616,2]
[373593440,1753055494467,-480.0,0.00019616,2]
[373593441,1753055494477,-480.0,0.00019616,2]
[373593442,1753055494487,-480.0,0.00019616,2]
[373593443,1753055494496,-480.0,0.00019616,2]
[373593444,1753055494506,-480.0,0.00019616,2]
[373593445,1753055494516,-480.0,0.00019616,2]
[373593446,1753055494525,-480.0,0.00019616,2]
[373593447,1753055494535,-480.0,0.00019616,2]
[373593448,1753055494544,-480.0,0.00019616,2]
[373593449,1753055494553,-480.0,0.00019616,2]
[373593450,1753055494563,-480.0,0.00019616,2]
[373593451,1753055494573,-480.0,0.00019616,2]
[373593452,1753055494583,-480.0,0.00019616,2]
[373593453,1753055494592,-400.52,0.00019616,2]
[373593454,1753055494601,-480.0,0.00019616,2]
[373593455,1753055494611,-480.0,0.00019616,2]
[373593456,1753055494620,-480.0,0.00019616,2]
[373593457,1753055494630,-480.0,0.00019616,2]
[373593458,1753055494640,-480.0,0.00019616,2]
[373593459,1753055494649,-480.0,0.00019616,2]
[373593460,1753055494658,-480.0,0.00019616,2]
[373593461,1753055494667,-480.0,0.00019616,2]
[373593462,1753055494677,-550.07,0.00019616,2]
[373593463,1753055494686,-660.38,0.00019616,2]
[373593464,1753055494695,-480.0,0.00019616,2]
[373593465,1753055494704,-480.0,0.00019616,2]
[373593466,1753055494714,-480.0,0.00019616,2]
[373593467,1753055494724,-725.02,0.00019616,2]
[373593468,1753055494733,-480.0,0.00019616,2]
[373593469,1753055494743,-480.0,0.00019616,2]
[373593470,1753055494756,-565.28,0.00019616,2]
[373593471,1753055494766,-460.0,0.00019616,2]
[373593472,1753055494775,-480.0,0.00019616,2]
[373593473,1753055494785,-480.0,0.00019616,2]
[373593474,1753055494794,-480.0,0.00019616,2]
[373593475,1753055494803,-963.53,0.00019616,2]
[373593476,1753055494812,-472.2862148,0.00019616,2]
[373593477,1753055494821,-480.0,0.00019616,2]
[373593478,1753055494830,-480.0,0.00019616,2]
[373593479,1753055494841,-480.0,0.00019616,2]
[373593480,1753055494850,-480.0,0.00019616,2]
[373593481,1753055494859,-480.0,0.00019616,2]
[373593482,1753055494868,-901.55,0.00019616,2]
[373593483,1753055494878,-480.0,0.00019616,2]
[373593484,1753055494887,-480.0,0.00019616,2]
[373593485,1753055494896,-704.94,0.00019616,2]
[373593486,1753055494906,-561.37,0.00019616,2]
[373593487,1753055494915,-480.0,0.00019616,2]
[373593488,1753055494924,-480.0,0.00019616,2]
[373593489,1753055494933,-534.06,0.00019616,2]
[373593490,1753055494943,-480.0,0.00019616,2]
[373593491,1753055494953,-480.0,0.00019616,2]
[373593492,1753055494963,-480.0,0.00019616,2]
[373593493,1753055494972,-480.0,0.00019616,2]
[373593494,1753055494982,-772.47,0.00019616,2]
[373593495,1753055494992,-954.23,0.00019616,2]
[373593496,1753055495002,-1097.85,0.00019616,2]
[373593497,1753055495011,-1458.93,0.00019616,2]
[373593498,1753055495022,-981.72,0.00019616,2]
[373593499,1753055495032,-480.0,0.00019616,2]
[373593500,1753055495042,-480.0,0.00019616,2]
[373593501,1753055495052,-739.84,0.00019616,2]
[373593502,1753055495061,-480.0,0.00019616,2]
[373593503,1753055495070,-480.0,0.00019616,2]
[373593504,1753055495081,-342.0,0.00019616,2]
[373593505,1753055495091,-660.09,0.00019616,2]
[373593506,1753055495102,-1056.59,0.00019616,2]
[373593507,1753055495113,-637.76,0.00019616,2]
[373593508,1753055495122,-480.0,0.00019616,2]
[373593509,1753055495132,-480.0,0.00019616,2]
[373593510,1753055495141,-480.0,0.00019616,2]
[373593511,1753055495152,-480.0,0.00019616,2]
[373593512,1753055495162,-1177.27,0.00019616,2]
[373593513,1753055495173,-1042.68,0.00019616,2]
[373593514,1753055495182,-512.59,0.00019616,2]
[373593515,1753055495193,-480.0,0.00019616,2]
[373593516,1753055495203,-347.25575005,0.00019616,2]
[373593517,1753055495214,-1082.73,0.00019616,2]
[373593518,1753055495224,-480.0,0.00019616,2]
[373593519,1753055495234,-480.0,0.00019616,2]
[373593520,1753055495245,-618.4,0.00019616,2]
[373593521,1753055495256,-1150.76,0.00019616,2]
[373593522,1753055495267,-480.0,0.00019616,2]
[373593523,1753055495280,-865.93,0.00019616,2]
[373593524,1753055495292,-725.55,0.00019616,2]
[373593525,1753055495302,-480.0,0.00019616,2]
[373593526,1753055495311,-480.0,0.00019616,2]
[373593527,1753055495320,-480.0,0.00019616,2]
[373593528,1753055495330,-480.0,0.00019616,2]
[373593529,1753055495340,-480.0,0.00019616,2]
[373593530,1753055495351,-480.0,0.00019616,2]
[373593531,1753055495361,-749.26,0.00019616,2]
[373593532,1753055495371,-1572.15,0.00019616,2]
[373593533,1753055495380,-2293.85,0.00019616,2]
[373593534,1753055495390,-480.0,0.00019616,2]
[373593535,1753055495399,-587.44,0.00019616,2]
[373593536,1753055495409,-865.65,0.00019616,2]
[373593537,1753055495419,-1033.02,0.00019616,2]
[373593538,1753055495428,-1259.0,0.00019616,2]
[373593539,1753055495438,-601.75,0.00019616,2]
[373593540,1753055495447,-1336.39,0.00019616,2]